Cogmind - Beta 15 @@@ ROGUE MODE // 2025.07.31 @ 16:26:16 Player: chebyrekser Result: Destroyed by X-87 Electro with Compact HERF Cannon Performance ------------- Evolutions (7) 3500 Regions Visited (27) 5400 Robots Destroyed (325) 1625 Value Destroyed (15530) 15530 Prototype IDs (63) 1260 Alien Tech Used (3) 600 Bonus (4815) 4815 TOTAL SCORE: 32730 Bonus ------- High Alert Combat Kills 551 Follower Combat Kills 660 Entered Garrisons 200 Met Data Miner 300 Acquired ECA 300 Met Zhirov 300 Met Warlord at Base 500 MAIN.C Attacked Warlord 500 Warlord Defense Kills 2224 Scanned by Researcher 500 Friendly Fire -1220 Cogmind --------- Core Integrity 0/1300 Matter 90/300 Energy 68/100 System Corruption 74% Temperature Cool (20) Movement Core (350) Ox6 Location -3/Testing Parts ------- > --- POWER (2) -------- (None) > --- PROPULSION (4) --- (None) > --- UTILITY (12) ----- Advanced Heat Sink Improved Coolant Injector Advanced Signal Interpreter Advanced Targeting Computer Precision Energy Filter > --- WEAPON (4) ------- Null Cannon > --- INVENTORY (5) ---- Advanced Heat Sink Advanced Heat Sink Structural Scanner Advanced Signal Interpreter Matter Neutralizer Peak State ------------ > --- POWER ------------ Vortex Chain Reactor > --- PROPULSION ------- Armored Medium Treads Heavy Treads Advanced Medium Treads > --- UTILITY ---------- Advanced Heat Sink Advanced Heat Sink Advanced Heat Sink Huge Storage Unit Spectral Analyzer Advanced Signal Interpreter Advanced Targeting Computer Improved Armor Integrity Analyzer Experimental Phase Shifter Makeshift Light Armor Plating Light Regenerative Plating Advanced Force Field > --- WEAPON ----------- Quantum Rifle Quantum Rifle Matter Neutralizer Matter Neutralizer > --- INVENTORY -------- Reinforced Fission Core Heavy Antimatter Reactor Particle Reactor Medium Treads Advanced Medium Treads Advanced Medium Treads Advanced Medium Treads Advanced Heat Sink Experimental Energy Well Structural Scanner Advanced Sensor Array Advanced Sensor Array Advanced Signal Interpreter Advanced Targeting Computer Advanced Transmission Jammer Experimental Power Shielding Makeshift Light Armor Plating System Mapper Hacking Drone Bay Quantum Rifle Quantum Rifle Matter Neutralizer Null Cannon Neutron Missile Launcher [Rating: 158] Favorites ----------- Power Micro Nuclear Core Engine Improved Ion Engine Power Core Micro Nuclear Core Reactor Vortex Chain Reactor Propulsion Armored Medium Treads Treads Armored Medium Treads Leg Aluminum Leg Wheel Armored Wheel Utility Huge Storage Unit Device Advanced Heat Sink Storage Huge Storage Unit Processor Advanced Targeting Computer Hackware Hacking Suite Protection Makeshift Light Armor Plating Weapon Improved Heavy Laser Energy Gun Improved Heavy Laser Energy Cannon Plasma Cannon Ballistic Gun Light Assault Rifle Ballistic Cannon Compact Mass Driver Launcher Long-range Missile Launcher Special Weapon Mining Laser Impact Weapon Powered Hammer Slashing Weapon Katana Build | -11 -10 -9 -8 -8 -8 -7 -7 -7 -7 -6 -6 -6 -6 -6 -5 -5 -5 -5 -5 -4 -4 -4 -4 -4 -3 -3 -3 ------- Run | Yrd Mat Mat Mat Gar Mat Fac Low Low Dat Pro Fac Low Low Zio Pro Fac Upp Upp War Pro Fac Upp Upp Zhi Pro Res Tes Slots Evolved 14 | . . 2 2 . . 2 . . . . 2 . . . . 2 . . . . 2 . . . . 2 . Power 1 | . . . . . . . . . . . 1 . . . . . . . . . . . . . . . . Propulsion 2 | . . 1 1 . . . . . . . . . . . . . . . . . . . . . . . . Utility 10 | . . 1 1 . . 1 . . . . 1 . . . . 2 . . . . 2 . . . . 2 . Weapon 1 | . . . . . . 1 . . . . . . . . . . . . . . . . . . . . . Parts Attached 253 | 8 2 17 4 28 14 19 4 1 . 4 15 4 4 2 . 31 1 14 9 1 7 1 3 3 4 14 39 Power 24 | 1 . 2 1 2 2 1 . . . . 2 . 1 1 . 3 1 1 1 . . . . . . . 5 Engine 12 | 1 . 2 1 2 2 . . . . . . . 1 . . 2 . 1 . . . . . . . . . Core 7 | . . . . . . 1 . . . . 2 . . 1 . 1 1 . . . . . . . . . 1 Reactor 5 | . . . . . . . . . . . . . . . . . . . 1 . . . . . . . 4 Propulsion 57 | 2 . 5 . 8 5 3 1 . . 2 4 . 1 . . 10 . 3 . . . . . . . 6 7 Treads 39 | 2 . 5 . 5 3 2 1 . . 2 3 . 1 . . 2 . 2 . . . . . . . 6 5 Leg 1 | . . . . 1 . . . . . . . . . . . . . . . . . . . . . . . Wheel 17 | . . . . 2 2 1 . . . . 1 . . . . 8 . 1 . . . . . . . . 2 Hover . | . . . . . . . . . . . . . . . . . . . . . . . . . . . . Flight . | . . . . . . . . . . . . . . . . . . . . . . . . . . . . Utility 107 | 2 1 5 2 9 7 9 2 . . . 6 2 1 . . 14 . 7 6 . 3 . 2 3 4 4 18 Device 56 | 1 . 1 1 3 1 6 1 . . . 4 1 . . . 4 . 3 3 . 2 . 2 1 3 3 16 Storage 7 | 1 1 2 . . 1 . . . . . . . . . . . . . 1 . . . . 1 . . . Processor 10 | . . . . . . . 1 . . . 2 . . . . 3 . 1 . . . . . 1 . 1 1 Hackware 4 | . . . . . . 1 . . . . . . . . . 3 . . . . . . . . . . . Protection 30 | . . 2 1 6 5 2 . . . . . 1 1 . . 4 . 3 2 . 1 . . . 1 . 1 Artifact . | . . . . . . . . . . . . . . . . . . . . . . . . . . . . Weapon 65 | 3 1 5 1 9 . 6 1 1 . 2 3 2 1 1 . 4 . 3 2 1 4 1 1 . . 4 9 Energy Gun 35 | 2 . 4 . 5 . 3 1 1 . 1 1 . . . . 4 . 2 . 1 3 1 1 . . 2 3 Energy Cannon 10 | . . . . . . 2 . . . . . 1 1 . . . . . . . 1 . . . . 1 4 Ballistic Gun 4 | 1 . 1 1 . . . . . . . 1 . . . . . . . . . . . . . . . . Ballistic Cannon 1 | . . . . . . . . . . . . . . . . . . . . . . . . . . . 1 Launcher 9 | . . . . 2 . . . . . 1 1 1 . 1 . . . 1 1 . . . . . . 1 . Special Weapon 2 | . 1 . . 1 . . . . . . . . . . . . . . . . . . . . . . . Impact Weapon 1 | . . . . . . 1 . . . . . . . . . . . . . . . . . . . . . Slashing Weapon 3 | . . . . 1 . . . . . . . . . . . . . . 1 . . . . . . . 1 Piercing Weapon . | . . . . . . . . . . . . . . . . . . . . . . . . . . . . Special Melee Weapon . | . . . . . . . . . . . . . . . . . . . . . . . . . . . . Unidentified Prototypes 26 | . . 1 . . . 1 . . . . . . . . . 3 . . 6 . 1 . . 2 . 1 11 Parts Lost 132 | . . 4 1 16 2 3 1 . . 4 5 5 2 . . 16 1 13 . . . 3 . . 5 5 46 Power 14 | . . 1 . . . . . . . . . . 1 . . 4 1 1 . . . . . . . . 6 Propulsion 35 | . . 1 . 7 1 . . . . 1 3 2 1 . . 5 . 3 . . . . . . . 3 8 Utility 49 | . . 1 . 6 1 1 . . . 1 1 1 . . . 5 . 4 . . . 2 . . 3 1 22 Weapon 34 | . . 1 1 3 . 2 1 . . 2 1 2 . . . 2 . 5 . . . 1 . . 2 1 10 Highest Loss Streak 24 | . . 1 1 7 1 2 1 . . 2 1 3 1 . . 4 1 7 . . . 2 . . 5 2 24 To Critical Strikes 3 | . . . . . . . . . . . . . . . . . . . . . . . . . . 1 2 Average Backups 22 | 4 8 16 19 19 23 24 24 25 25 24 24 23 24 24 25 22 20 19 23 22 23 22 23 23 22 23 21 Power 2 | 1 3 3 1 2 2 2 2 2 2 2 1 2 3 2 2 1 . . 3 4 2 2 2 2 2 3 3 Propulsion 2 | 1 2 1 . . 3 5 5 5 5 4 4 2 1 . 1 2 3 2 2 2 2 2 2 2 2 3 1 Utility 11 | . . 5 9 10 12 12 12 12 12 11 11 11 13 14 16 10 10 8 11 13 15 14 14 14 12 11 10 Weapon 4 | . 1 5 7 5 4 3 3 4 4 3 4 4 3 4 4 5 5 5 4 1 2 4 5 4 4 4 5 Tool/Special . | . . . . . . . . . . . . . . . . . . . . . . . . . . . . Unused Backups 59 | . 1 8 . 1 6 7 . 1 . 1 1 . 1 4 1 4 . 1 3 . 3 . . 1 . 7 8 Power 18 | . 1 3 . 1 1 2 . . . . . . 1 1 . . . . . . 2 . . 1 . 3 2 Propulsion 9 | . . 2 . . 1 1 . . . . . . . . . 1 . . 1 . . . . . . 3 . Utility 25 | . . 2 . . 4 2 . . . 1 1 . . 3 1 1 . 1 1 . 1 . . . . 1 6 Weapon 7 | . . 1 . . . 2 . 1 . . . . . . . 2 . . 1 . . . . . . . . Tool/Special . | . . . . . . . . . . . . . . . . . . . . . . . . . . . . Average Slot Usage (%) 91 | . 100 92 98 87 99 99 100 100 80 99 98 97 97 88 100 98 96 77 80 86 89 86 90 71 87 88 92 Engine 2 | . 14 10 9 9 9 5 . . . . . . 1 4 . 3 . 3 . . . . . . . . . Core 4 | . . . . . . 1 7 7 7 7 12 13 11 7 13 6 7 1 . . . . . . . . 2 Reactor 1 | . . . . . . . . . . . . . . . . . . . 4 5 5 5 5 5 5 4 3 Treads 18 | . 28 30 35 24 17 15 15 15 15 14 19 25 25 26 26 13 11 14 17 17 15 15 15 15 15 12 14 Wheel 3 | . . . . 2 18 14 15 15 15 15 5 . . . . 7 11 3 . . . . . . . . . Device 14 | . 14 7 7 8 9 14 14 15 15 14 13 13 12 13 13 11 11 11 16 17 20 19 20 20 15 17 22 Storage 6 | . 14 11 9 9 9 7 7 7 7 7 6 6 6 6 6 5 5 5 5 5 5 5 5 5 5 4 4 Processor 11 | . . . . . . . 6 7 7 7 12 13 13 13 13 17 17 17 17 17 15 15 15 15 15 18 17 Protection 8 | . . 10 19 11 16 8 7 7 7 7 6 6 6 6 6 10 11 10 5 5 10 10 10 9 14 12 7 Energy Gun 9 | . 14 11 9 12 16 12 7 7 1 9 9 3 . . . 11 17 5 5 14 15 13 20 1 17 12 6 Energy Cannon 5 | . . . . . . 6 15 15 2 10 5 11 13 8 12 2 . . . . 2 3 . . . 4 10 Peak Build Rating 158 | 7 8 15 20 25 29 46 48 49 48 50 63 64 66 68 69 90 90 86 120 120 134 133 136 136 137 153 158 Average Rating 77 | 5 7 11 18 19 24 39 46 47 36 47 57 59 62 58 68 80 84 75 106 112 128 128 134 109 129 147 141 On Entrance 69 | . 7 8 15 20 22 29 45 47 48 47 47 61 57 57 68 69 84 82 76 120 111 131 133 135 136 125 153 Naked Turns . | . . . . . . . . . . . . . . . . . . . . . . . . . . . . Heaviest Build 179 | 12 17 70 58 60 111 119 118 113 113 113 119 122 129 132 131 142 131 117 156 156 157 158 164 164 166 178 179 Greatest Support 130 | 40 40 60 80 80 24 24 24 24 24 24 96 98 100 100 100 100 22 124 124 124 124 124 124 124 124 127 130 Greatest Overweight (x) 35 | 1 . 1 . 17 5 4 4 4 4 4 9 1 1 1 1 11 5 8 1 1 1 1 1 1 1 3 35 Average Overweight (x) 1 | . . . . . 3 4 4 4 3 4 3 1 1 1 1 4 5 1 . 1 1 1 1 1 1 1 1 Largest Inventory Capacity 25 | 8 10 20 20 20 25 25 25 25 25 25 25 25 25 25 25 25 25 25 25 25 25 25 25 25 25 25 25 Average Capacity 23 | 7 9 18 20 20 24 25 25 25 25 25 25 25 25 25 25 25 25 25 25 25 25 25 25 25 25 25 24 Most Carried 25 | 6 10 20 20 20 25 25 25 25 25 25 25 25 25 25 25 25 23 25 25 25 25 25 25 25 25 25 25 Average Carried 22 | 4 8 16 19 19 23 24 24 25 24 24 24 23 24 24 24 23 22 20 24 23 24 23 24 24 23 24 22 Final Capacity 25 | 8 10 20 20 20 25 25 25 25 25 25 25 25 25 25 25 25 25 25 25 25 25 25 25 25 25 25 5 Final Carried 25 | 5 10 20 20 20 25 25 25 25 25 24 25 22 25 25 25 23 23 24 25 24 25 24 25 25 21 23 5 Class Distribution -------------------- 24% | Mutant 22% | Tank 14% | Skirmisher 14% | Scavenger-Mutant 8% | Scavenger-Skirmisher 7% | Scavenger-Tank Dominant Class ---------------- Mutant | -10/Materials Mutant | -9/Materials Scavenger-Mutant | -8/Materials Scavenger-Mutant | -8/Garrison Scavenger-Mutant | -8/Materials Scavenger-Tank | -7/Factory Skirmisher | -7/Lower Caves Skirmisher | -7/Lower Caves Mutant | -7/Data Miner Tank | -6/Proximity Caves Scavenger-Skirmisher | -6/Factory Scavenger-Skirmisher | -6/Lower Caves Skirmisher | -6/Lower Caves Mutant | -6/Zion Skirmisher | -5/Proximity Caves Skirmisher | -5/Factory Skirmisher | -5/Upper Caves Mutant | -5/Upper Caves Mutant | -5/Warlord Tank | -4/Proximity Caves Tank | -4/Factory Tank | -4/Upper Caves Tank | -4/Upper Caves Mutant | -4/Zhirov Tank | -3/Proximity Caves Tank | -3/Research Scavenger-Tank | -3/Testing Resources | -11 -10 -9 -8 -8 -8 -7 -7 -7 -7 -6 -6 -6 -6 -6 -5 -5 -5 -5 -5 -4 -4 -4 -4 -4 -3 -3 -3 ----------- Run | Yrd Mat Mat Mat Gar Mat Fac Low Low Dat Pro Fac Low Low Zio Pro Fac Upp Upp War Pro Fac Upp Upp Zhi Pro Res Tes Matter Collected 9068 | 323 37 302 74 588 200 515 171 60 . 242 438 439 212 165 49 1477 87 521 231 40 404 225 118 94 204 743 1109 Remotely . | . . . . . . . . . . . . . . . . . . . . . . . . . . . . Salvage Created 15149 | 249 133 1244 163 1343 467 595 48 45 . 557 744 347 148 . . 2181 135 451 731 256 556 248 60 238 280 1858 2072 Parts 606 | 19 16 64 10 47 18 33 2 3 . 14 36 14 6 . . 54 3 11 16 10 27 12 4 1 11 85 90 Haulers Intercepted 8 | . 1 4 . . 1 1 . . . . 1 . . . . . . . . . . . . . . . . Recyclers Shooed 10 | . . . 1 . . 1 . . . . 2 . . . . 4 . . . . . . . . . . 2 Parts Field Recycled . | . . . . . . . . . . . . . . . . . . . . . . . . . . . . Retrieved Matter . | . . . . . . . . . . . . . . . . . . . . . . . . . . . . Parts Self-Destructed 79 | . . . . . . . . 3 . 13 . 14 2 . . . 1 7 . 10 . 12 6 . 11 . . Prevented 4 | . . . . . . . . . . . . . 1 . . . 2 . . . . . 1 . . . . Kills | -11 -10 -9 -8 -8 -8 -7 -7 -7 -7 -6 -6 -6 -6 -6 -5 -5 -5 -5 -5 -4 -4 -4 -4 -4 -3 -3 -3 ------- Run | Yrd Mat Mat Mat Gar Mat Fac Low Low Dat Pro Fac Low Low Zio Pro Fac Upp Upp War Pro Fac Upp Upp Zhi Pro Res Tes Combat Hostiles Destroyed 247 | . 3 24 3 31 6 6 1 1 . 9 15 7 8 . . 23 2 15 21 2 7 6 1 . 7 27 22 Guns 133 | . 3 23 2 18 5 4 . . . 2 8 . . . . 18 2 8 1 2 6 4 1 . 7 15 4 Cannons 43 | . . . . . . 2 . 1 . 6 1 5 2 . . 3 . . . . 1 2 . . . 10 10 AOE 52 | . . . . 11 . . . . . . 4 2 6 . . 1 . 7 20 . . . . . . . 1 Classes Destroyed 26 | 2 3 4 2 3 . 2 1 . . 1 1 1 . . . . . . 1 . . . . . 1 1 3 Worker 9 | . . . 1 . . 1 . . . . 1 . . . . 3 . . . . . . . . . . 3 Builder 6 | . . . . . . 2 . . . . 1 . . . . . . . . . 1 . . . . . 2 Tunneler 10 | 8 . 1 . . . . . . . . . . . . . . . . . . 1 . . . . . . Hauler 8 | . 1 4 . . 1 1 . . . . 1 . . . . . . . . . . . . . . . . Recycler 20 | 1 . 2 . . 1 3 . . . . . . . . . 7 . . . . 1 . . . . . 5 Minesweeper 1 | . . . . . . . . . . . . 1 . . . . . . . . . . . . . . . Mechanic 3 | . . . . . . . . . . . 2 . . . . . . . . . . . . . . . 1 Operator 3 | . . 1 . . . 1 . . . . . . . . . . . . . . . . . . . 1 . Drone 2 | . . . . . . . . . . . . . . . . . . . . . . . . . 2 . . Watcher 9 | . 2 3 . . . . . . . . 1 . . . . 2 . . . . 1 . . . . . . Swarmer 52 | . 3 11 . 8 . . . . . . 7 . 6 . . 4 . 2 3 . . 4 . . 3 1 . Grunt 72 | . . 9 1 13 2 4 . . . 5 1 4 2 . . . 1 8 12 . . . . . . 7 3 Brawler 3 | . . . . 1 1 . . . . . . . . . . . . . 1 . . . . . . . . Duelist 10 | . . 1 . 3 . . . . . 2 . . . . . . . 2 2 . . . . . . . . Protector 1 | . . . . 1 . . . . . . . . . . . . . . . . . . . . . . . Researcher 4 | . . . . . . . . . . . . . . . . . . . . . . . . . . . 4 Sentry 25 | . . 3 1 4 3 . . . . 1 3 . . . . 3 1 1 . . . . . . 1 4 . Demolisher 1 | . . . . 1 . . . . . . . . . . . . . . . . . . . . . . . Specialist 1 | . . . . . . . . . . . . . . . . . . . 1 . . . . . . . . Hunter 16 | . . . 1 . . . . . . . . 2 . . . 1 . . 2 . 1 2 . . . 2 5 Programmer 58 | . . . . . . 2 . 1 . . 4 1 . . . 15 . 2 . 2 6 . 1 . 1 12 11 Heavy 1 | . . . . . . . . . . . . . . . . . . . . . . . . . . 1 . Behemoth 1 | . . . . . . . . . . 1 . . . . . . . . . . . . . . . . . Striker 2 | . . . . . . . . . . . . . . . . . . . . . . . . . . . 2 Alpha 7 1 | . . . . . . . . . . . . . . . . . . . . . . . . . . . 1 Decomposer 1 | . . . . . . . . . . . . 1 . . . . . . . . . . . . . . . Surgeon 2 | . . . . . . . . . . . . . . . . . . . 2 . . . . . . . . Thug 2 | . . . . . . . . . . . . . . . . . . . 2 . . . . . . . . Butcher 1 | . . . . . . . . . . . . . . . . . . . 1 . . . . . . . . Mutant 1 | . . . . . . . 1 . . . . . . . . . . . . . . . . . . . . Best Kill Streak 9 | 2 3 5 2 5 2 5 1 1 . 3 4 4 3 . . 4 1 5 9 2 4 4 1 . 2 7 9 Combat Bots Only 9 | . 3 4 2 5 2 1 1 1 . 3 4 4 3 . . 4 1 5 9 2 2 4 1 . 2 6 4 Max Kills in Single Turn 9 | 1 1 1 1 3 1 3 1 1 . 1 3 2 2 . . 3 1 2 9 1 2 1 1 . 1 2 3 Gunslinging 1 | . . . . . . . . . . . . . . . . 1 . 1 . . . . . . . . . Exploded 9 | . . . . 3 . . . . . . 3 2 2 . . 1 . 1 9 . . . . . . . 1 Melee . | . . . . . . . . . . . . . . . . . . . . . . . . . . . . Uniques/NPCs Destroyed . | . . . . . . . . . . . . . . . . . . . . . . . . . . . . Combat | -11 -10 -9 -8 -8 -8 -7 -7 -7 -7 -6 -6 -6 -6 -6 -5 -5 -5 -5 -5 -4 -4 -4 -4 -4 -3 -3 -3 -------- Run | Yrd Mat Mat Mat Gar Mat Fac Low Low Dat Pro Fac Low Low Zio Pro Fac Upp Upp War Pro Fac Upp Upp Zhi Pro Res Tes Hostile Shots Fired 1963 | . 18 114 26 133 93 65 4 2 . 50 141 45 10 . . 197 15 148 18 . 25 48 4 . 60 208 539 Missed 569 | . 2 38 6 40 29 16 . 1 . 15 50 11 3 . . 40 6 46 7 . 3 12 . . 11 61 172 Hits 1394 | . 16 76 20 93 64 49 4 1 . 35 91 34 7 . . 157 9 102 11 . 22 36 4 . 49 147 367 Melee 19 | . . 5 . . . . . . . 6 . . . . . . . . . . . . . . . . 8 Projectile 1375 | . 16 71 20 93 64 49 4 1 . 29 91 34 7 . . 157 9 102 11 . 22 36 4 . 49 147 359 AOE 6 | . . . . 5 . . . . . . . . . . . . . . . . 1 . . . . . . Critical Strikes 76 | . . 1 . 5 6 7 . . . 1 2 1 . . . 14 1 5 . . 2 2 . . . 9 20 Actively Blocked 1 | . . . . 1 . . . . . . . . . . . . . . . . . . . . . . . Part Disruptions 10 | . . . . . . . 1 . . . . . . . . 3 . . . . . . . . . 2 4 Damage Taken 25167 | . 136 912 307 1634 1056 879 57 14 . 770 1133 650 125 . . 2832 172 2207 221 . 397 442 40 . 1004 2386 7793 Core 2514 | . 12 134 . 104 151 29 . . . 102 139 35 . . . 239 . 172 . . 34 52 . . 47 289 975 Absorbed by Shields 3400 | . . . . . . . . . . . . . . . . 302 45 59 120 . 143 137 42 . 112 1036 1404 Redirected to Shielding 215 | . . 22 . 51 5 . . . . . . . . . . . . . . . . . . . . . 137 Ignored by Resistances 6 | . . . . . . . . . . . . . . . . 6 . . . . . . . . . . . Regen/Repaired (Parts) 1947 | . . 33 . . . 78 . . . . . . . 316 . 215 42 268 223 . 77 81 . . 88 381 145 Core Remaining (%) 77 | 100 95 66 . . 53 . . . . 81 . . . . 79 . . . . 58 . . . . 88 . . Volleys Fired 885 | 33 20 101 17 105 25 34 3 1 . 20 49 14 7 . . 84 7 43 18 5 31 10 1 16 20 74 147 Largest 4 | 2 2 2 2 2 2 3 3 3 . 3 3 3 3 . . 3 3 3 1 3 4 4 4 1 4 4 4 Hottest 398 | 70 100 100 79 112 112 216 240 229 . 235 229 240 235 . . 225 195 211 65 215 323 323 329 94 329 392 398 Shots Fired 2024 | 66 37 198 34 199 50 91 8 3 . 56 115 33 16 . . 206 24 59 18 15 93 40 5 17 69 256 316 Gun 1535 | 66 34 195 34 192 50 59 2 1 . 22 86 8 . . . 170 24 43 11 15 81 36 5 17 69 187 128 Cannon 434 | . . . . . . 32 6 2 . 34 27 21 9 . . 34 . . . . 12 4 . . . 69 184 Launcher 49 | . . . . 7 . . . . . . 2 4 7 . . 2 . 16 7 . . . . . . . 4 Special 6 | . 3 3 . . . . . . . . . . . . . . . . . . . . . . . . . Kinetic 201 | 33 17 97 17 29 . . . . . . 8 . . . . . . . . . . . . . . . . Thermal 1768 | 33 20 101 17 163 50 91 8 3 . 56 105 29 6 . . 201 24 43 11 15 93 40 5 17 69 256 312 Explosive 42 | . . . . 7 . . . . . . 2 4 7 . . 2 . 16 . . . . . . . . 4 Electromagnetic 6 | . . . . . . . . . . . . . 3 . . 3 . . . . . . . . . . . Entropic 7 | . . . . . . . . . . . . . . . . . . . 7 . . . . . . . . Robot Hit Streak 24 | 6 6 11 11 19 24 13 8 1 . 12 14 8 7 . . 12 9 16 9 8 17 5 3 10 13 15 23 Robot Miss Streak 10 | 3 2 6 2 4 1 10 . 2 . 5 3 3 1 . . 4 4 2 3 2 3 3 . 1 6 4 6 Penetration Max . | . . . . . . . . . . . . . . . . . . . . . . . . . . . . Secondary Targets 16 | . 1 5 . 2 . . . . . . . . . . . 1 . 1 . . 1 2 . . . 3 . Max Gunslinging Chain 1 | . 1 1 . 1 . . . . . . . . . . . 1 . 1 . . 1 1 . . . 1 . Shots Hit Robots 1304 | 37 22 120 28 159 39 55 6 1 . 42 81 24 5 . . 156 12 46 10 10 55 21 2 14 36 168 155 Core Hits 607 | 15 10 54 8 68 16 28 2 1 . 21 38 20 13 . . 61 4 40 35 6 17 8 1 3 15 63 60 Critical Kills 12 | 1 . . . . . . 1 . . 1 . . . . . . . . . . . . . . . 1 8 Critical Parts Destroyed . | . . . . . . . . . . . . . . . . . . . . . . . . . . . . Critical Strikes 72 | 3 4 7 1 16 7 1 2 . . 2 1 . . . . 3 . 3 . 1 4 . . . 2 7 8 Burn 57 | 2 4 7 1 13 7 1 1 . . 1 1 . . . . 3 . 3 . 1 4 . . . 2 6 . Meltdown 11 | . . . . . . . 1 . . 1 . . . . . . . . . . . . . . . 1 8 Destroy 1 | 1 . . . . . . . . . . . . . . . . . . . . . . . . . . . Sever 3 | . . . . 3 . . . . . . . . . . . . . . . . . . . . . . . Melee Attacks 111 | . . . . 38 5 7 . . . . 16 5 . . . 37 . 3 . . . . . . . . . Impact 61 | . . . . . . . . . . . 16 5 . . . 37 . 3 . . . . . . . . . Slashing 50 | . . . . 38 5 7 . . . . . . . . . . . . . . . . . . . . . Piercing . | . . . . . . . . . . . . . . . . . . . . . . . . . . . . Sneak Attacks 7 | . . . . . . . . . . . 1 2 . . . 4 . . . . . . . . . . . Combat Hostiles . | . . . . . . . . . . . . . . . . . . . . . . . . . . . . Follow-up Attacks . | . . . . . . . . . . . . . . . . . . . . . . . . . . . . Damage Inflicted 44728 | 400 239 1401 336 3773 568 1186 151 32 . 1034 2315 1068 567 . . 5026 306 2392 7141 263 1810 560 65 521 999 5446 7129 Guns 23046 | 400 239 1395 336 2092 568 770 47 . . 368 1364 149 . . . 3649 306 947 195 251 1591 418 65 521 999 3859 2517 Cannons 7997 | . . . . . . 415 104 32 . 666 455 338 99 . . 769 . . . . 219 142 . . . 1587 3171 Explosions 12126 | . . . . 898 . . . . . . 376 353 468 . . 215 . 1445 6946 . . . . . . . 1425 Melee 1524 | . . . . 783 . . . . . . 120 228 . . . 393 . . . . . . . . . . . Ramming 35 | . . 6 . . . 1 . . . . . . . . . . . . . 12 . . . . . . 16 Kinetic 1288 | 148 89 512 130 274 . . . . . . 135 . . . . . . . . . . . . . . . . Thermal 30021 | 252 150 883 206 1818 568 1185 151 32 . 1034 1684 487 27 . . 4418 306 947 195 251 1810 560 65 521 999 5446 6026 Explosive 4842 | . . . . 898 . . . . . . 376 353 468 . . 215 . 1445 . . . . . . . . 1087 Electromagnetic 72 | . . . . . . . . . . . . . 72 . . . . . . . . . . . . . . Impact 741 | . . . . . . . . . . . 120 228 . . . 393 . . . . . . . . . . . Slashing 783 | . . . . 783 . . . . . . . . . . . . . . . . . . . . . . . Piercing . | . . . . . . . . . . . . . . . . . . . . . . . . . . . . Entropic 6946 | . . . . . . . . . . . . . . . . . . . 6946 . . . . . . . . Highest Corruption 74 | . . . . . . 2 2 2 2 2 3 3 3 3 . 19 19 25 25 . 6 6 8 8 8 22 74 Average Corruption 12 | . . . . . . 1 2 2 2 2 1 3 3 3 . 14 19 24 25 . 3 6 6 8 8 13 45 Corruption Purged . | . . . . . . . . . . . . . . . . . . . . . . . . . . . . Corruption Blocked . | . . . . . . . . . . . . . . . . . . . . . . . . . . . . Effects 740 | . . . . . . 4 10 6 3 15 19 48 30 1 . 114 29 75 3 . 9 37 27 20 49 57 184 Message Errors 160 | . . . . . . . 2 4 . 4 4 10 3 . . 27 9 21 1 . 3 5 4 6 11 17 29 Matter Fused 182 | . . . . . . 2 3 . 1 5 4 14 11 . . 29 5 20 1 . 2 13 8 4 11 11 38 Heat Flow Errors 77 | . . . . . . . . . . 3 2 5 1 . . 14 1 12 . . 3 5 4 2 7 6 12 Energy Discharges 92 | . . . . . . . 1 . 2 . 1 10 4 . . 12 4 7 1 . . 5 3 3 11 8 20 Parts Rejected 5 | . . . . . . . . . . 1 1 . . . . 1 . . . . . . . . . 1 1 Parts Fused 7 | . . . . . . . . . . . . 1 . . . 1 1 1 . . . . . . . . 3 Data Loss (minor) 69 | . . . . . . 1 1 1 . 2 5 4 1 1 . 10 5 5 . . 1 4 3 1 4 5 15 Data Loss (major) 50 | . . . . . . . 1 . . . 1 2 5 . . 6 1 6 . . . 3 2 3 2 3 15 Misfires 25 | . . . . . . . 1 . . . . . 3 . . 3 3 1 . . . 1 1 1 1 2 8 Alerts 20 | . . . . . . 1 1 1 . . . 2 2 . . 2 . 1 . . . 1 2 . 2 . 5 Misdirections 10 | . . . . . . . . . . . . . . . . 3 . 1 . . . . . . . . 6 Weapon Failures 43 | . . . . . . . . . . . 1 . . . . 6 . . . . . . . . . 4 32 Overload Shots . | . . . . . . . . . . . . . . . . . . . . . . . . . . . . Overflow Damage 1073 | . . . . 6 . 13 . . . 25 80 137 . . . 127 . 52 193 . 21 . . . . 260 159 Projectiles 451 | . . . . . . 13 . . . 25 . . . . . 32 . . . . 21 . . . . 260 100 Explosions 310 | . . . . 6 . . . . . . . . . . . . . 52 193 . . . . . . . 59 Melee 312 | . . . . . . . . . . . 80 137 . . . 95 . . . . . . . . . . . Knockbacks 5 | . . . . . . . . . . . . 1 . . . 4 . . . . . . . . . . . Impact 4 | . . . . . . . . . . . . 1 . . . 3 . . . . . . . . . . . Kinetic . | . . . . . . . . . . . . . . . . . . . . . . . . . . . . Secondary 1 | . . . . . . . . . . . . . . . . 1 . . . . . . . . . . . Self-Inflicted Damage 267 | . . . . 12 . . . . . . . 39 . . . 38 . 38 . . . . . . . . 140 Shots 7 | . . . . 1 . . . . . . . 1 . . . 1 . 2 . . . . . . . . 2 Rammed 7 | . . 1 . . . 2 . . . . . . . . . . . . . 1 . . . . . . 3 Targets Rammed 8 | . . 1 1 . . 2 . . . . . . . . . . . . . 1 . . . . . . 3 Kicked . | . . . . . . . . . . . . . . . . . . . . . . . . . . . . Crushed 1 | . . . 1 . . . . . . . . . . . . . . . . . . . . . . . . Highest Temperature 467 | 90 130 179 201 263 237 384 122 39 . 247 344 231 112 . . 351 295 238 290 174 312 355 246 205 450 422 467 Average Temperature 96 | 33 37 49 87 74 100 130 72 26 . 61 91 58 35 . . 92 143 61 145 59 134 125 96 105 142 126 156 Received Heat Transfer 3731 | . . 258 54 711 549 270 40 . . 201 111 153 36 . . 145 46 529 . . 9 . . . 9 274 336 Effects 20 | . . . . 2 2 1 . . . . 1 . . . . 1 2 . . . 1 1 . . . 1 8 Shutdowns 5 | . . . . . . . . . . . . . . . . . . . . . . . . . . . 5 Energy Bleed 7 | . . . . . . . . . . . . . . . . 1 2 . . . . 1 . . . . 3 Interference 6 | . . . . 2 2 . . . . . 1 . . . . . . . . . 1 . . . . . . Matter Decay 1 | . . . . . . . . . . . . . . . . . . . . . . . . . . 1 . Damage (minor) 1 | . . . . . . 1 . . . . . . . . . . . . . . . . . . . . . Siege Activations . | . . . . . . . . . . . . . . . . . . . . . . . . . . . . Martial Activations . | . . . . . . . . . . . . . . . . . . . . . . . . . . . . Shielding Activations . | . . . . . . . . . . . . . . . . . . . . . . . . . . . . Robots Disrupted . | . . . . . . . . . . . . . . . . . . . . . . . . . . . . Combat Hostiles . | . . . . . . . . . . . . . . . . . . . . . . . . . . . . Robots Corrupted 2 | . . . . . . . . . . . . 1 . . . 1 . . . . . . . . . . . Combat Hostiles . | . . . . . . . . . . . . . . . . . . . . . . . . . . . . Parts Fried 9 | . . . . . . . . . . . 2 2 2 . . 3 . . . . . . . . . . . Impact Corruptions 9 | . . . . . . . . . . . 3 2 . . . 4 . . . . . . . . . . . Robots Melted 23 | . . 1 1 2 1 . 1 . . 1 3 . . . . 1 . . . . . . . . . 2 10 Combat Hostiles 19 | . . 1 1 2 1 . 1 . . 1 2 . . . . 1 . . . . . . . . . 2 7 Parts Melted 167 | 1 1 9 1 20 5 3 . . . 12 11 4 . . . 37 . . 1 . 6 1 . . 2 25 28 Heat Transferred 49144 | 888 740 2849 592 5144 1961 2685 386 50 . 2077 3339 987 50 . . 6258 444 1591 296 496 2351 777 74 527 1554 6808 6220 Parts Sabotaged . | . . . . . . . . . . . . . . . . . . . . . . . . . . . . Parts Stolen . | . . . . . . . . . . . . . . . . . . . . . . . . . . . . Parts Stripped . | . . . . . . . . . . . . . . . . . . . . . . . . . . . . Power Chain Reactions 4 | . . . . . . . . . . . . . . . . . . . . . . . . . . . 4 Alert | -11 -10 -9 -8 -8 -8 -7 -7 -7 -7 -6 -6 -6 -6 -6 -5 -5 -5 -5 -5 -4 -4 -4 -4 -4 -3 -3 -3 ------- Run | Yrd Mat Mat Mat Gar Mat Fac Low Low Dat Pro Fac Low Low Zio Pro Fac Upp Upp War Pro Fac Upp Upp Zhi Pro Res Tes Maximum Alert Level 5 | . . 1 . 5 3 2 . . . . . . . . . 1 . . . . . . . . . 2 1 Low Security (%) 54 | 100 100 94 100 1 . 30 . . . . 100 . . . . 83 . . . . 100 . . . . 4 18 Level 1 33 | . . 5 . 41 . 57 . . . . . . . . . 16 . . . . . . . . . 88 81 Level 2 3 | . . . . 11 . 11 . . . . . . . . . . . . . . . . . . . 6 . Level 3 5 | . . . . 21 100 . . . . . . . . . . . . . . . . . . . . . . Level 4 2 | . . . . 17 . . . . . . . . . . . . . . . . . . . . . . . Level 5 1 | . . . . 7 . . . . . . . . . . . . . . . . . . . . . . . High Security . | . . . . . . . . . . . . . . . . . . . . . . . . . . . . Max Security . | . . . . . . . . . . . . . . . . . . . . . . . . . . . . Peak Influence 1935 | 10 66 211 60 1935 1002 462 . . . . 102 . . . . 331 . . . . 77 . . . . 483 380 Initial 943 | . . 9 24 32 943 462 . . . . . . . . . . . . . . . . . . . 300 269 Average 245 | . 20 109 10 728 960 230 . . . . 41 . . . . 96 . . . . 14 . . . . 289 283 Influence Increases 10161 | 45 143 759 85 2203 344 275 . 30 . 285 470 175 255 . . 955 40 345 770 66 255 155 20 5 195 1127 1159 Destroy 0b10 Robot/C 5360 | . 60 480 60 800 140 120 . 20 . 180 300 140 160 . . 460 40 300 620 40 140 120 20 . 100 540 520 Destroy 0b10 Robot/NC 390 | 45 15 55 5 20 10 40 . . . . 30 5 . . . 60 . . 5 5 20 . . 5 10 5 55 Destroy Leader 884 | . 16 104 20 40 52 32 . 10 . 30 74 30 20 . . 134 . 30 . 10 32 20 . . 10 140 80 Allied During Kill 212 | . . . . 48 3 . . . . . . . . . . . . . 145 11 5 . . . . . . Successful Hack 283 | . 20 45 . 7 24 30 . . . . 26 . . . . 97 . . . . 10 . . . . 24 . Disable Machine 420 | . 15 30 . 15 30 15 . . . . 15 . . . . 60 . . . . 30 . . . . . 210 Anti-Garrison Action 1050 | . . . . 1050 . . . . . . . . . . . . . . . . . . . . . . . Destroy Structure 647 | . 2 . . 118 10 8 . . . . 25 . . . . 114 . . . . 18 . . . . 58 294 Advance Influence 300 | . . . . . . . . . . . . . . . . . . . . . . . . . . 300 . Partial Spotted 15 | . 15 . . . . . . . . . . . . . . . . . . . . . . . . . . Lose Combat Pursuer 600 | . . 45 . 105 75 30 . . . 75 . . 75 . . 30 . 15 . . . 15 . . 75 60 . Influence Decreases 9883 | 45 120 724 93 318 1262 1285 7 30 . 285 451 193 168 88 . 647 348 345 148 688 199 211 20 5 195 648 1360 Entered New Map 2682 | . . 14 34 18 992 555 4 . . . . 8 1 88 . . 115 . . 622 . 21 . . . . 210 Time Decay 5577 | 45 120 520 59 . 230 550 3 30 . 245 431 164 147 . . 524 233 295 108 66 169 160 20 5 165 598 690 Lost Part 1094 | . . 40 . 160 20 30 . . . 40 20 21 20 . . 123 . 50 . . . 30 . . 30 50 460 Lost Ally 230 | . . . . 140 20 . . . . . . . . . . . . . 40 . 30 . . . . . . Purge Threat 300 | . . 150 . . . 150 . . . . . . . . . . . . . . . . . . . . . Squads Dispatched 53 | . 2 3 2 . 3 5 . . . . 5 . . . . 8 . 1 . . 4 . . . . 9 11 Investigation 2 | . 1 . . . . 1 . . . . . . . . . . . . . . . . . . . . . Extermination 25 | . . . . . . 3 . . . . 3 . . . . 7 . . . . 3 . . . . 4 5 Reinforcement 19 | . 1 3 1 . 1 1 . . . . 2 . . . . 1 . . . . 1 . . . . 2 6 Assault 3 | . . . . . 2 . . . . . . . . . . . . 1 . . . . . . . . . Garrison 4 | . . . 1 . . . . . . . . . . . . . . . . . . . . . . 3 . Intercept . | . . . . . . . . . . . . . . . . . . . . . . . . . . . . Searches Triggered . | . . . . . . . . . . . . . . . . . . . . . . . . . . . . Construction Impeded . | . . . . . . . . . . . . . . . . . . . . . . . . . . . . Haulers Reinforced 1 | . . . . . . . . . . . 1 . . . . . . . . . . . . . . . . Active Scanning Responses . | . . . . . . . . . . . . . . . . . . . . . . . . . . . . Cargo Convoy Interrupts . | . . . . . . . . . . . . . . . . . . . . . . . . . . . . Stealth | -11 -10 -9 -8 -8 -8 -7 -7 -7 -7 -6 -6 -6 -6 -6 -5 -5 -5 -5 -5 -4 -4 -4 -4 -4 -3 -3 -3 --------- Run | Yrd Mat Mat Mat Gar Mat Fac Low Low Dat Pro Fac Low Low Zio Pro Fac Upp Upp War Pro Fac Upp Upp Zhi Pro Res Tes Distress Signals 15 | . 2 3 . . 2 1 . . . . . . . . . 3 . . . . . . . . 2 1 1 Communications Jammed . | . . . . . . . . . . . . . . . . . . . . . . . . . . . . Distress Signals . | . . . . . . . . . . . . . . . . . . . . . . . . . . . . Times Spotted 385 | . 10 41 5 42 27 16 1 1 . 12 14 7 8 . . 39 2 16 36 1 8 7 1 . 13 35 43 Peak Tracking Total 13 | . 4 4 2 5 13 5 1 1 . 4 4 4 2 . . 5 1 6 12 1 2 4 1 . 5 6 8 Tactical Retreats 23 | . . 2 . 3 4 2 . . . 2 . . 2 . . 1 . 1 . . . 1 . . 2 3 . Traps | -11 -10 -9 -8 -8 -8 -7 -7 -7 -7 -6 -6 -6 -6 -6 -5 -5 -5 -5 -5 -4 -4 -4 -4 -4 -3 -3 -3 ------- Run | Yrd Mat Mat Mat Gar Mat Fac Low Low Dat Pro Fac Low Low Zio Pro Fac Upp Upp War Pro Fac Upp Upp Zhi Pro Res Tes Traps Triggered 17 | . 1 . . 4 . 2 . . . . 3 . . . . 4 . . 1 . 1 . . . . . 1 Indirectly . | . . . . . . . . . . . . . . . . . . . . . . . . . . . . Trap Hack Attempts . | . . . . . . . . . . . . . . . . . . . . . . . . . . . . Triggered . | . . . . . . . . . . . . . . . . . . . . . . . . . . . . Disarmed . | . . . . . . . . . . . . . . . . . . . . . . . . . . . . Reprogrammed . | . . . . . . . . . . . . . . . . . . . . . . . . . . . . Reused . | . . . . . . . . . . . . . . . . . . . . . . . . . . . . Traps Extracted . | . . . . . . . . . . . . . . . . . . . . . . . . . . . . Installed . | . . . . . . . . . . . . . . . . . . . . . . . . . . . . Triggered . | . . . . . . . . . . . . . . . . . . . . . . . . . . . . Machines | -11 -10 -9 -8 -8 -8 -7 -7 -7 -7 -6 -6 -6 -6 -6 -5 -5 -5 -5 -5 -4 -4 -4 -4 -4 -3 -3 -3 ---------- Run | Yrd Mat Mat Mat Gar Mat Fac Low Low Dat Pro Fac Low Low Zio Pro Fac Upp Upp War Pro Fac Upp Upp Zhi Pro Res Tes Machines Disabled 43 | . 1 2 . 9 2 1 1 . . . 1 . . . . 4 . 1 1 . 2 . . 1 . . 17 Max in Single Turn 1 | . 1 1 . 1 1 1 1 . . . 1 . . . . 1 . 1 . . 1 . . 1 . . 1 Garrison Access 1 | . . . . . 1 . . . . . . . . . . . . . . . . . . . . . . Garrison Relay 6 | . . . . 6 . . . . . . . . . . . . . . . . . . . . . . . Phase Generator 1 | . . . . 1 . . . . . . . . . . . . . . . . . . . . . . . Machines Repaired . | . . . . . . . . . . . . . . . . . . . . . . . . . . . . Machines Dismantled . | . . . . . . . . . . . . . . . . . . . . . . . . . . . . Machines Sabotaged . | . . . . . . . . . . . . . . . . . . . . . . . . . . . . Overloaded Fab Kills . | . . . . . . . . . . . . . . . . . . . . . . . . . . . . Hacking | -11 -10 -9 -8 -8 -8 -7 -7 -7 -7 -6 -6 -6 -6 -6 -5 -5 -5 -5 -5 -4 -4 -4 -4 -4 -3 -3 -3 --------- Run | Yrd Mat Mat Mat Gar Mat Fac Low Low Dat Pro Fac Low Low Zio Pro Fac Upp Upp War Pro Fac Upp Upp Zhi Pro Res Tes Machines Accessed 72 | . 3 9 1 4 4 6 1 1 4 1 5 1 1 . . 15 . . 4 . 3 . 1 5 . 2 1 Terminals 37 | . 3 8 . 4 3 5 . . . 1 3 . 1 . . 8 . . . . 1 . . . . . . Fabricators 3 | . . . . . . . . . . . . . . . . 3 . . . . . . . . . . . Repair Stations 8 | . . 1 . . . 1 . . . . 1 . . . . 3 . . . . 1 . . . . 1 . Recycling Units . | . . . . . . . . . . . . . . . . . . . . . . . . . . . . Scanalyzers 5 | . . . . . . . . . . . 1 . . . . 1 . . . . 1 . . . . 1 1 Garrison Access 2 | . . . 1 . 1 . . . . . . . . . . . . . . . . . . . . . . Total Hacks 191 | . 8 25 1 8 8 16 1 1 29 1 10 1 1 . . 33 . . 14 . 11 . 1 17 . 2 3 Successful 131 | . 5 13 1 1 6 10 1 1 29 1 3 1 1 . . 18 . . 14 . 6 . 1 17 . 1 1 Failed 59 | . 2 12 . 7 2 6 . . . . 7 . . . . 15 . . . . 5 . . . . 1 2 Catastrophic 8 | . . 2 . 1 . . . . . . 2 . . . . 3 . . . . . . . . . . . Database Lockouts 1 | . 1 . . . . . . . . . . . . . . . . . . . . . . . . . . Manual 44 | . 7 17 . . 5 8 . . . . . . . . . 3 . . 1 . 3 . . . . . . Terminals 85 | . 8 23 . 8 7 12 . . . 1 6 . 1 . . 15 . . . . 4 . . . . . . Fabricators 6 | . . . . . . . . . . . . . . . . 6 . . . . . . . . . . . Repair Stations 22 | . . 2 . . . 4 . . . . 2 . . . . 9 . . . . 4 . . . . 1 . Recycling Units . | . . . . . . . . . . . . . . . . . . . . . . . . . . . . Scanalyzers 12 | . . . . . . . . . . . 2 . . . . 3 . . . . 3 . . . . 1 3 Garrison Access 2 | . . . 1 . 1 . . . . . . . . . . . . . . . . . . . . . . Terminal Hacks 98 | . 3 10 . 1 3 5 1 1 29 1 2 1 1 . . 6 . . 14 . 2 . 1 17 . . . Record 27 | . . . . . . . . . 11 1 . . 1 . . 1 . . 8 . . . . 5 . . . Part Schematic 16 | . 1 . . . . 1 . . 10 . . . . . . . . . . . . . . 4 . . . Robot Schematic 5 | . . . . . . . . . 5 . . . . . . . . . . . . . . . . . . Robot Analysis 10 | . 2 2 . . 1 . . . . . . . . . . 1 . . . . . . . 4 . . . Prototype ID Bank 14 | . . 2 . . . . . . 3 . . . . . . . . . 5 . . . . 4 . . . Open Door 6 | . . . . 1 . . 1 1 . . . 1 . . . . . . 1 . . . 1 . . . . Branch Access Points 4 | . . 1 . . 1 1 . . . . . . . . . 1 . . . . . . . . . . . Emergency Access Points 2 | . . . . . . . . . . . 1 . . . . . . . . . 1 . . . . . . Terminal Index 1 | . . . . . . . . . . . 1 . . . . . . . . . . . . . . . . Unreport Threat 2 | . . 1 . . . 1 . . . . . . . . . . . . . . . . . . . . . Locate Traps 4 | . . 1 . . . 1 . . . . . . . . . 2 . . . . . . . . . . . Transport Status 1 | . . 1 . . . . . . . . . . . . . . . . . . . . . . . . . Hauler Manifests 1 | . . 1 . . . . . . . . . . . . . . . . . . . . . . . . . Registered Components 1 | . . . . . 1 . . . . . . . . . . . . . . . . . . . . . . Zone Layout 4 | . . 1 . . . 1 . . . . . . . . . 1 . . . . 1 . . . . . . Fabricator Hacks 6 | . . . . . . . . . . . . . . . . 6 . . . . . . . . . . . Load Schematic 3 | . . . . . . . . . . . . . . . . 3 . . . . . . . . . . . Build 3 | . . . . . . . . . . . . . . . . 3 . . . . . . . . . . . Repair Station Hacks 10 | . . 2 . . . 3 . . . . . . . . . 4 . . . . 1 . . . . . . Scan Component 7 | . . 1 . . . 2 . . . . . . . . . 3 . . . . 1 . . . . . . Repair 3 | . . 1 . . . 1 . . . . . . . . . 1 . . . . . . . . . . . Recycling Unit Hacks . | . . . . . . . . . . . . . . . . . . . . . . . . . . . . Scanalyzer 7 | . . . . . . . . . . . 1 . . . . 2 . . . . 2 . . . . 1 1 Insert Component 6 | . . . . . . . . . . . 1 . . . . 1 . . . . 2 . . . . 1 1 Analyze 1 | . . . . . . . . . . . . . . . . 1 . . . . . . . . . . . Garrison Access Hacks 2 | . . . 1 . 1 . . . . . . . . . . . . . . . . . . . . . . Unlock Access 1 | . . . 1 . . . . . . . . . . . . . . . . . . . . . . . . Seal Access 1 | . . . . . 1 . . . . . . . . . . . . . . . . . . . . . . Unauthorized Hacks 8 | . 2 1 . . 2 2 . . . . . . . . . . . . . . 1 . . . . . . Terminals 8 | . 2 1 . . 2 2 . . . . . . . . . . . . . . 1 . . . . . . Botnet 8 | . 2 1 . . 2 2 . . . . . . . . . . . . . . 1 . . . . . . Fabricators . | . . . . . . . . . . . . . . . . . . . . . . . . . . . . Repair Stations . | . . . . . . . . . . . . . . . . . . . . . . . . . . . . Recycling Units . | . . . . . . . . . . . . . . . . . . . . . . . . . . . . Scanalyzers . | . . . . . . . . . . . . . . . . . . . . . . . . . . . . Garrison Access . | . . . . . . . . . . . . . . . . . . . . . . . . . . . . Data Cores Recovered . | . . . . . . . . . . . . . . . . . . . . . . . . . . . . Used . | . . . . . . . . . . . . . . . . . . . . . . . . . . . . Hacking Detections 47 | . 3 8 . 3 3 6 . . . 1 5 . . . . 12 . . . . 3 . . . . 2 1 Full Trace Events 1 | . . . . . . 1 . . . . . . . . . . . . . . . . . . . . . Feedback Events . | . . . . . . . . . . . . . . . . . . . . . . . . . . . . Feedback Blocked . | . . . . . . . . . . . . . . . . . . . . . . . . . . . . Robot Schematics Acquired 8 | . . . . . . . . . 5 . . . . 3 . . . . . . . . . . . . . Robots Built . | . . . . . . . . . . . . . . . . . . . . . . . . . . . . Authchips . | . . . . . . . . . . . . . . . . . . . . . . . . . . . . Time . | . . . . . . . . . . . . . . . . . . . . . . . . . . . . Total Robot Build Rating . | . . . . . . . . . . . . . . . . . . . . . . . . . . . . Part Schematics Acquired 33 | . 1 . . . . 1 . . 10 . . . . 13 . 1 . . . . . . . 4 . . 3 Parts Built 3 | . . . . . . . . . . . . . . . . 3 . . . . . . . . . . . Authchips 3 | . . . . . . . . . . . . . . . . 3 . . . . . . . . . . . Time 334 | . . . . . . . . . . . . . . . . 334 . . . . . . . . . . . Total Part Build Rating 16 | . . . . . . . . . . . . . . . . 16 . . . . . . . . . . . Parts Repaired 3 | . . 1 . . . 1 . . . . . . . . . 1 . . . . . . . . . . . Time 111 | . . 26 . . . 32 . . . . . . . . . 53 . . . . . . . . . . . Parts Recycled . | . . . . . . . . . . . . . . . . . . . . . . . . . . . . Recycled Matter . | . . . . . . . . . . . . . . . . . . . . . . . . . . . . Retrieved Matter . | . . . . . . . . . . . . . . . . . . . . . . . . . . . . Retrieved Components . | . . . . . . . . . . . . . . . . . . . . . . . . . . . . Parts Scanalyzed 4 | . . . . . . . . . . . 1 . . . . 1 . . . . 1 . . . . . 1 Part Schematics Acquired 1 | . . . . . . . . . . . . . . . . 1 . . . . . . . . . . . Parts Damaged 2 | . . . . . . . . . . . 1 . . . . . . . . . . . . . . . 1 Bothacking | -11 -10 -9 -8 -8 -8 -7 -7 -7 -7 -6 -6 -6 -6 -6 -5 -5 -5 -5 -5 -4 -4 -4 -4 -4 -3 -3 -3 ------------ Run | Yrd Mat Mat Mat Gar Mat Fac Low Low Dat Pro Fac Low Low Zio Pro Fac Upp Upp War Pro Fac Upp Upp Zhi Pro Res Tes Used RIF Installer . | . . . . . . . . . . . . . . . . . . . . . . . . . . . . Robots Hacked . | . . . . . . . . . . . . . . . . . . . . . . . . . . . . Non-combat . | . . . . . . . . . . . . . . . . . . . . . . . . . . . . Combat . | . . . . . . . . . . . . . . . . . . . . . . . . . . . . Robot Hacks Applied . | . . . . . . . . . . . . . . . . . . . . . . . . . . . . Relay Couplers Released 24 | . . . . 24 . . . . . . . . . . . . . . . . . . . . . . . Machine Destruction 24 | . . . . 24 . . . . . . . . . . . . . . . . . . . . . . . Fabnet Peak Effective % . | . . . . . . . . . . . . . . . . . . . . . . . . . . . . Robots Rewired 14 | . . . . 9 . . . . . . . . . . . . . . 5 . . . . . . . . Allies Hacked 1 | . . . . . . . . . . . . . . . . . . . . 1 . . . . . . . Hacks Repelled . | . . . . . . . . . . . . . . . . . . . . . . . . . . . . Allies | -11 -10 -9 -8 -8 -8 -7 -7 -7 -7 -6 -6 -6 -6 -6 -5 -5 -5 -5 -5 -4 -4 -4 -4 -4 -3 -3 -3 -------- Run | Yrd Mat Mat Mat Gar Mat Fac Low Low Dat Pro Fac Low Low Zio Pro Fac Upp Upp War Pro Fac Upp Upp Zhi Pro Res Tes Total Allies 14 | . . . . 9 . . . . . . . . . . . . . . 5 . . . . . . . . Largest Group 6 | . . . . 6 1 . . . . . . . . . . . . . 5 3 3 . . . . . . Highest-Rated Group 244 | . . . . 98 34 . . . . . . . . . . . . . 244 154 154 . . . . . . Highest-Rated Ally 64 | . . . . 39 34 . . . . . . . . . . . . . 64 64 64 . . . . . . Initial Warlord ECA Mod 178 | . . . . . 11 10 10 10 10 9 9 9 9 9 8 8 7 7 7 6 6 6 6 6 5 5 5 Warlord Squad Rendezvous 1 | . . . . . . . . . . . . . . . . 1 . . . . . . . . . . . Infantry 1 | . . . . . . . . . . . . . . . . 1 . . . . . . . . . . . Total Orders 24 | . . . . . . . . . . . . . . . . . . . 8 . 7 . . . 3 3 3 STAY 9 | . . . . . . . . . . . . . . . . . . . 6 . 3 . . . . . . ROAM 2 | . . . . . . . . . . . . . . . . . . . . . . . . . 2 . . FOLLOW 4 | . . . . . . . . . . . . . . . . . . . 2 . 2 . . . . . . EXPLORE 1 | . . . . . . . . . . . . . . . . . . . . . . . . . 1 . . RETURN 8 | . . . . . . . . . . . . . . . . . . . . . 2 . . . . 3 3 Ally Attacks 132 | . . . . 62 3 . . . . . . . . . . . . . 57 3 7 . . . . . . Total Damage 4287 | . . . . 1484 56 . . . . . . . . . . . . . 2374 78 295 . . . . . . Kills 22 | . . . . 11 1 . . . . . . . . . . . . . 10 . . . . . . . . Allies Corrupted 3 | . . . . . . . . . . . . . . . . . . . 1 . 2 . . . . . . Allies Melted . | . . . . . . . . . . . . . . . . . . . . . . . . . . . . Intel | -11 -10 -9 -8 -8 -8 -7 -7 -7 -7 -6 -6 -6 -6 -6 -5 -5 -5 -5 -5 -4 -4 -4 -4 -4 -3 -3 -3 ------- Run | Yrd Mat Mat Mat Gar Mat Fac Low Low Dat Pro Fac Low Low Zio Pro Fac Upp Upp War Pro Fac Upp Upp Zhi Pro Res Tes Active Infowar (turns) 32813 | 36 384 1156 177 . 121 1349 719 589 131 427 1919 2394 1520 3302 733 3120 608 1371 1559 819 1748 1058 791 632 1558 1916 2676 Optics 4592 | . . . . . . . . . . . . . . . . . . . . . . . . . . 1916 2676 Sensors 29873 | . . 850 177 . 121 1321 719 589 131 427 1753 2394 1520 3302 733 2458 533 1328 1559 819 1736 1058 791 632 1530 1197 2195 Terrain 2 | . . . . . . . . . . . . . . . . . . . . . . . . . . . 2 Structural 1303 | . . . . . . 28 . . . . 166 . . . . 175 . . . . 12 . . . . 261 661 Traps 1 | . . . . . . . . . . . . . . . . . . . . . . . . . . . 1 Seismic 726 | 36 384 306 . . . . . . . . . . . . . . . . . . . . . . . . . Decoding 4038 | . . . . . . . . . . . . . . . . 3114 608 316 . . . . . . . . . Jamming 40 | . . . . . . . . . . . . . . . . . . 12 . . . . . . 28 . . Robot Analysis Total 10 | . 2 2 . . 1 . . . . . . . . . . 1 . . . . . . . 4 . . . Derelict Logs Recovered 16 | . . . . . . . 3 1 . 2 . 1 1 1 2 . 1 1 . 1 . . 2 . . . . Drone Launches 10 | . . . . . . . . . . . . . . . . . . . . . 2 . . . 2 3 3 Drone Recoveries 9 | . . . . . . . . . . . . . . . . . . . . . 2 . . . 1 3 3 Decoded 0b10 Intel 79 | . . . . . . . . . . . . . . . . 79 . . . . . . . . . . . Traps 7 | . . . . . . . . . . . . . . . . 7 . . . . . . . . . . . Emergency Access 6 | . . . . . . . . . . . . . . . . 6 . . . . . . . . . . . Items 48 | . . . . . . . . . . . . . . . . 48 . . . . . . . . . . . Machines 10 | . . . . . . . . . . . . . . . . 10 . . . . . . . . . . . Patrols 5 | . . . . . . . . . . . . . . . . 5 . . . . . . . . . . . Guards 3 | . . . . . . . . . . . . . . . . 3 . . . . . . . . . . . Exploration | -11 -10 -9 -8 -8 -8 -7 -7 -7 -7 -6 -6 -6 -6 -6 -5 -5 -5 -5 -5 -4 -4 -4 -4 -4 -3 -3 -3 ------------- Run | Yrd Mat Mat Mat Gar Mat Fac Low Low Dat Pro Fac Low Low Zio Pro Fac Upp Upp War Pro Fac Upp Upp Zhi Pro Res Tes Turns Passed 39058 | 481 384 1624 222 2785 496 1590 779 618 131 892 2320 2484 1653 3303 733 3120 608 1551 1559 848 1963 1127 804 632 1655 1916 2780 Spaces Moved 15877 | 234 180 678 86 1152 224 780 501 403 90 513 939 985 644 1377 307 1298 346 807 634 328 681 435 317 234 449 564 691 Core 7 | 4 . . . 2 . . . . . . . . . . . . . . . . . . . . . . 1 Treads 10937 | 230 180 678 86 944 4 . . . . . 418 985 644 1377 307 198 . 554 634 328 681 435 317 234 449 564 690 Legs . | . . . . . . . . . . . . . . . . . . . . . . . . . . . . Wheels 4933 | . . . . 206 220 780 501 403 90 513 521 . . . . 1100 346 253 . . . . . . . . . Hover . | . . . . . . . . . . . . . . . . . . . . . . . . . . . . Flight . | . . . . . . . . . . . . . . . . . . . . . . . . . . . . Fastest Speed 50 | 50 160 160 160 120 120 150 150 150 135 150 150 238 238 238 238 155 160 140 166 246 246 246 246 246 246 238 228 Average Speed 204 | 158 160 178 160 182 154 150 150 150 136 150 208 239 238 238 238 179 160 165 231 246 246 246 246 246 246 242 233 Slowest Speed 1800 | 160 160 240 160 900 545 150 150 150 150 150 245 245 238 238 238 480 160 250 246 246 246 246 246 246 246 405 1800 Overloaded Moves . | . . . . . . . . . . . . . . . . . . . . . . . . . . . . Propulsion Burnouts . | . . . . . . . . . . . . . . . . . . . . . . . . . . . . Robots Hopped . | . . . . . . . . . . . . . . . . . . . . . . . . . . . . Potential Cave-ins 5 | . . . . . . . . . . . . . . . . . . 1 . . . . . . . . 4 Cave-ins Triggered 3 | . . . . . . . . . . . . . . . . . . . . . . . . . . . 3 Teleports 1 | . . . . . . . . . . . . . . . . . . . . . . . . . . . 1 Exploration Rate (%) 52 | 12 44 65 6 89 25 29 62 56 73 67 25 85 81 80 58 32 52 87 77 48 13 48 53 62 62 19 72 Regions Visited 27 Branch Regions 17 Pre-discovered Areas 8 | . . . . . . . 2 . 1 . . . 1 1 . . . . . . . . . 3 . . . Known Exits Taken 22 | . . . 1 . . 1 1 1 1 1 1 1 1 1 1 1 1 1 1 1 1 1 1 1 1 1 . Unknown Exits Taken 4 | 1 1 1 . . 1 . . . . . . . . . . . . . . . . . . . . . . Scrap Searched 27 | . . . . . . . 3 2 . 2 . 3 2 4 1 . . 2 . 3 . 3 . . 2 . . Spaces Dug 233 | . 2 . . 14 4 6 . . . . 13 1 36 . . 46 . 11 45 . 4 . . . . 8 43 Terrain Destroyed 864 | . 2 . . 23 4 6 . . . . 20 67 70 . . 60 2 184 194 . 6 . . . . 32 194 Melee 53 | . . . . . 4 6 . . . . 13 1 . . . 28 . 1 . . . . . . . . . Projectile 124 | . 2 . . . . . . . . . . 2 . . . . 2 1 . . 6 . . . . 32 79 AOE 687 | . . . . 23 . . . . . . 7 64 70 . . 32 . 182 194 . . . . . . . 115 Terrain Rammed . | . . . . . . . . . . . . . . . . . . . . . . . . . . . . Walls Destroyed . | . . . . . . . . . . . . . . . . . . . . . . . . . . . . Machines Disabled . | . . . . . . . . . . . . . . . . . . . . . . . . . . . . Actions | -11 -10 -9 -8 -8 -8 -7 -7 -7 -7 -6 -6 -6 -6 -6 -5 -5 -5 -5 -5 -4 -4 -4 -4 -4 -3 -3 -3 --------- Run | Yrd Mat Mat Mat Gar Mat Fac Low Low Dat Pro Fac Low Low Zio Pro Fac Upp Upp War Pro Fac Upp Upp Zhi Pro Res Tes Total 20512 | 281 237 911 138 1564 322 1101 523 412 98 589 1165 1061 747 1407 310 1817 382 962 715 357 889 466 340 276 951 920 1571 Wait 2334 | . 28 57 24 112 18 189 3 1 . 32 92 38 69 4 . 213 23 59 15 18 113 13 10 . 466 178 559 Move 15847 | 233 179 677 85 1149 223 779 500 402 89 512 938 984 643 1376 306 1297 345 806 633 327 680 434 316 233 448 563 690 Hop . | . . . . . . . . . . . . . . . . . . . . . . . . . . . . Pick Up 266 | 6 6 30 4 13 14 14 4 . . 6 14 1 5 9 1 34 1 15 6 1 9 2 4 4 2 19 42 Fast Attach 69 | 6 . 4 1 9 1 3 . . 3 2 2 . 1 3 . 8 . . 6 . 2 . . 9 1 4 4 Attach 165 | 1 . 8 2 8 3 6 1 . 1 5 7 4 3 2 . 28 1 17 4 2 5 3 . 1 4 8 41 Detach 22 | . . . . . . . . . 1 . . . 2 1 . . . 6 6 . . . . 1 . . 5 Swap 503 | 2 2 10 2 33 16 49 8 7 1 9 38 15 15 2 2 94 5 11 3 2 41 4 5 1 7 61 58 Drop 198 | . 2 23 2 10 17 18 4 1 3 3 9 . 2 10 1 19 . 2 11 1 8 . 4 11 3 13 21 Fire 885 | 33 20 101 17 105 25 34 3 1 . 20 49 14 7 . . 84 7 43 18 5 31 10 1 16 20 74 147 Melee 111 | . . . . 38 5 7 . . . . 16 5 . . . 37 . 3 . . . . . . . . . Ram 1 | . . . . . . 1 . . . . . . . . . . . . . . . . . . . . . Kick . | . . . . . . . . . . . . . . . . . . . . . . . . . . . . Crush 7 | . . 1 1 . . 1 . . . . . . . . . . . . . 1 . . . . . . 3 Escape Stasis 12 | . . . . 8 . . . . . . . . . . . 3 . . . . . . . . . . 1 Rewire 92 | . . . . 79 . . . . . . . . . . . . . . 13 . . . . . . . . Trap . | . . . . . . . . . . . . . . . . . . . . . . . . . . . . Miscellaneous . | . . . . . . . . . . . . . . . . . . . . . . . . . . . . Route ------- -11/Scrapyard -10/Materials (discovered 2 exits: *Mat / [*Min]) -9/Materials (discovered 3 exits: *Mat / *Min x2) -8/Materials -8/Garrison (discovered 3 exits: *Mat x3) -8/Materials -7/Factory (discovered 5 exits: *Fac x2 / Sto / *Low x2) -7/Lower Caves -7/Lower Caves -7/Data Miner -6/Proximity Caves -6/Factory (discovered 4 exits: *Fac x2 / *Low x2) -6/Lower Caves -6/Lower Caves -6/Zion (discovered 2 exits: Dee / *Pro) -5/Proximity Caves -5/Factory (discovered 5 exits: Fac / *Upp x2 / Ext x2) -5/Upper Caves -5/Upper Caves (discovered 2 exits: *Fac / *War) -5/Warlord -4/Proximity Caves -4/Factory (discovered 6 exits: Res x4 / *Upp x2) -4/Upper Caves -4/Upper Caves (discovered 2 exits: *Res / *Zhi) -4/Zhirov -3/Proximity Caves -3/Research (discovered 2 exits: Arm / *Tes) -3/Testing (discovered 1 exit: [*Res]) History --------- Turn | Location | Event 2 | -11/Scrapyard | Met Revision 17 14 | -11/Scrapyard | Discovered new exit (range 16) 482 | -11/Scrapyard | Entered Materials 483 | -10/Materials | Build established: Mutant 524 | -10/Materials | Discovered new exit (range 10) 596 | -10/Materials | Discovered new exit (range 13) 726 | -10/Materials | Central database locked down 866 | -10/Materials | Entered another Materials area 866 | -9/Materials | Evolved 2 slots: Propulsion x1, Utility x1 1792 | -9/Materials | Discovered new exit (range 7) 1995 | -9/Materials | Discovered new exit (range 14) 2145 | -9/Materials | Build established: Scavenger-Mutant 2297 | -9/Materials | Repaired Core Shielding 2422 | -9/Materials | Identified exit to Mines 2454 | -9/Materials | Discovered new exit (range 16) 2490 | -9/Materials | Entered another Materials area 2490 | -8/Materials | Evolved 2 slots: Propulsion x1, Utility x1 2657 | -8/Materials | Identified exit to Garrison 2688 | -8/Materials | Garrison activated, responded to threat 2712 | -8/Materials | Entered Garrison 2722 | -8/Garrison | Triggered checkpoint 2745 | -8/Garrison | Triggered checkpoint 2934 | -8/Garrison | Garrison Relay disabled 3032 | -8/Garrison | Triggered checkpoint 3372 | -8/Garrison | Triggered checkpoint 3376 | -8/Garrison | Triggered checkpoint 3431 | -8/Garrison | Lost 6 allies 3444 | -8/Garrison | Lost 7 parts (4n2u1w) 3556 | -8/Garrison | Triggered checkpoint 3617 | -8/Garrison | Lost 3 parts (1n2u) 3906 | -8/Garrison | Triggered checkpoint 3931 | -8/Garrison | Discovered new exit (range 15) 4096 | -8/Garrison | Triggered checkpoint 4125 | -8/Garrison | Garrison Relay disabled 4194 | -8/Garrison | Discovered new exit (range 10) 4223 | -8/Garrison | Phase Generator disabled 4382 | -8/Garrison | Attempted to access garrison exit controls, blocked by remote lockdown 4620 | -8/Garrison | Attempted to access garrison exit controls, blocked by remote lockdown 4710 | -8/Garrison | Garrison Relay disabled 4808 | -8/Garrison | Triggered checkpoint 5175 | -8/Garrison | Garrison Relay disabled 5259 | -8/Garrison | Spotted B-75 Beast 5259 | -8/Garrison | Spotted B-75 Beast 5274 | -8/Garrison | Triggered checkpoint 5369 | -8/Garrison | Garrison Relay disabled 5388 | -8/Garrison | Garrison Relay disabled 5470 | -8/Garrison | Triggered checkpoint 5486 | -8/Garrison | Discovered new exit (range 10) 5497 | -8/Garrison | Entered Materials 5497 | -8/Materials | Accompanied by 1 ally 5897 | -8/Materials | First assault squad dispatched 5980 | -8/Materials | Discovered new exit (range 10) 5993 | -8/Materials | Entered Factory 5993 | -7/Factory | Evolved 2 slots: Utility x1, Weapon x1 6078 | -7/Factory | Identified exit to Storage 6078 | -7/Factory | Identified exit to Lower Caves 6372 | -7/Factory | Build established: Scavenger-Tank 6661 | -7/Factory | Repaired Arm. Wheel 6775 | -7/Factory | Discovered new exit (range 6) 7255 | -7/Factory | Discovered new exit (range 10) 7583 | -7/Factory | Entered Lower Caves 7591 | -7/Lower Caves | Met a Warlord Commander 7591 | -7/Lower Caves | Encountered a Warlord checkpoint 7592 | -7/Lower Caves | Learned location of Warlord (-5) 7593 | -7/Lower Caves | Warlord Commander delivered Encrypted Comm Array 7601 | -7/Lower Caves | Found Encrypted Comm Array 7717 | -7/Lower Caves | Learned location of Zion (-6) 7731 | -7/Lower Caves | Identified exit to Lower Caves 7821 | -7/Lower Caves | Learned Factory emergency access door positions 7829 | -7/Lower Caves | Build established: Skirmisher 8070 | -7/Lower Caves | Attacked by a delusional Derelict stockpiling parts 8362 | -7/Lower Caves | Entered another Lower Caves area 8775 | -7/Lower Caves | Learned Factory security intel 8824 | -7/Lower Caves | Discovered new exit (range 11) 8979 | -7/Lower Caves | Identified exit to Data Miner 8980 | -7/Lower Caves | Entered Data Miner 8980 | -7/Data Miner | Discovered new exit (range 6) 9009 | -7/Data Miner | Met Data Miner 9046 | -7/Data Miner | Learned location of Section 7 (-2) 9046 | -7/Data Miner | Acquired the access code to Warlord's prototype stash 9069 | -7/Data Miner | Received God Mode back door access code from Data Miner 9106 | -7/Data Miner | Identified exit to Proximity Caves 9111 | -7/Data Miner | Entered Proximity Caves 9113 | -6/Proximity Caves | Learned location of 1 exit from Factory 9159 | -6/Proximity Caves | Learned 8 Factory zone layouts 9292 | -6/Proximity Caves | Attracted the attention of an 0b10 checkpoint 9638 | -6/Proximity Caves | Spotted B-75 Beast 9644 | -6/Proximity Caves | Destroyed B-75 Beast 9943 | -6/Proximity Caves | Build established: Tank 9945 | -6/Proximity Caves | Discovered new exit (range 10) 9990 | -6/Proximity Caves | Identified exit to Factory 10003 | -6/Proximity Caves | Entered Factory 10003 | -6/Factory | Evolved 2 slots: Power x1, Utility x1 10004 | -6/Factory | Identified exit to Factory 10005 | -6/Factory | Identified exit to Lower Caves 10436 | -6/Factory | Build established: Mutant 10498 | -6/Factory | Discovered exit to Lower Caves (range 15) 10759 | -6/Factory | Discovered exit to Factory (range 5) 10924 | -6/Factory | Build established: Scavenger-Skirmisher 11879 | -6/Factory | Build established: Scavenger-Mutant 12323 | -6/Factory | Entered Lower Caves 12899 | -6/Lower Caves | Build established: Scavenger-Skirmisher 13450 | -6/Lower Caves | Learned location of 1 exit from Factory 13799 | -6/Lower Caves | Discovered new exit (range 11) 13844 | -6/Lower Caves | Lost 3 parts (1n1u1w) 14089 | -6/Lower Caves | Build established: Mutant 14260 | -6/Lower Caves | Identified exit to Lower Caves 14807 | -6/Lower Caves | Entered another Lower Caves area 14994 | -6/Lower Caves | Learned location of Extension (-5) 15448 | -6/Lower Caves | Encountered a Warlord checkpoint 15498 | -6/Lower Caves | Build established: Skirmisher 16437 | -6/Lower Caves | Discovered new exit (range 10) 16456 | -6/Lower Caves | Identified exit to Zion 16460 | -6/Lower Caves | Entered Zion 16578 | -6/Zion | System corruption cleaned by Quarantine Array 16755 | -6/Zion | Build established: Mutant 16848 | -6/Zion | Discovered new exit (range 14) 17065 | -6/Zion | Received a hallucinogenic algorithm 17299 | -6/Zion | Identified exit to Deep Caves 17464 | -6/Zion | Given the Hacking Drone Bay 17828 | -6/Zion | Given A8's code to call for help 17849 | -6/Zion | Learned location of Armory (-3) 18407 | -6/Zion | Found Prototype Processor 18468 | -6/Zion | Found Prototype Processor 18636 | -6/Zion | Found Prototype Device 19410 | -6/Zion | Build established: Skirmisher 19758 | -6/Zion | Identified exit to Proximity Caves 19763 | -6/Zion | Entered Proximity Caves 19775 | -5/Proximity Caves | Learned Factory security intel 20496 | -5/Proximity Caves | Entered Factory 20496 | -5/Factory | Evolved 2 slots: Utility x2 20496 | -5/Factory | Identified Exp. Melee Analysis Suite 20497 | -5/Factory | Identified exit to Factory 20498 | -5/Factory | Identified Exp. Target Analyzer 20830 | -5/Factory | Build established: Derelict-Mutant 20886 | -5/Factory | Fabricated Lgt. Regenerative Plating? 20948 | -5/Factory | Fabricated Lgt. Regenerative Plating (x1) 21179 | -5/Factory | System corruption reached 10% 21212 | -5/Factory | Lost 4 parts (2p2u) 21739 | -5/Factory | Joined by Warlord Infantry squad 22003 | -5/Factory | Repaired Broken Adv. Treads 22161 | -5/Factory | P-70 Sage assimilated allied B5-XJU(g) 22593 | -5/Factory | Identified exit to Upper Caves 22593 | -5/Factory | Identified exit to Extension 22915 | -5/Factory | Build established: Skirmisher 22941 | -5/Factory | Fabricated Hvy. Treads (x1) 23616 | -5/Factory | Entered Upper Caves 23635 | -5/Upper Caves | Lost 3 parts (1p1n1u) 24007 | -5/Upper Caves | Encountered a Warlord checkpoint 24068 | -5/Upper Caves | Attracted the attention of an 0b10 checkpoint 24145 | -5/Upper Caves | Learned 4 Factory zone layouts 24216 | -5/Upper Caves | Discovered new exit (range 3) 24217 | -5/Upper Caves | Identified exit to Upper Caves 24224 | -5/Upper Caves | Entered another Upper Caves area 24260 | -5/Upper Caves | Discovered exit to Factory (range 15) 24362 | -5/Upper Caves | Learned 8 Factory zone layouts 24548 | -5/Upper Caves | Spotted B-75 Beast 24606 | -5/Upper Caves | Lost 7 parts (1p1n2u3w) 24645 | -5/Upper Caves | Attracted the attention of an 0b10 outpost 24960 | -5/Upper Caves | Encountered a Warlord checkpoint 25005 | -5/Upper Caves | Found DCF Scrap (14 items) 25269 | -5/Upper Caves | Build established: Mutant 25436 | -5/Upper Caves | Discovered new exit (range 12) 25455 | -5/Upper Caves | Identified exit to Warlord 25604 | -5/Upper Caves | Found Alien Artifact 25775 | -5/Upper Caves | Entered Warlord 25839 | -5/Warlord | System corruption cleaned by Quarantine Array 25958 | -5/Warlord | Opened Warlord's prototype stash 25964 | -5/Warlord | Found Prototype Reactor 25964 | -5/Warlord | Identified Vortex Chain Reactor 25973 | -5/Warlord | Found Prototype Device 25973 | -5/Warlord | Identified Exp. Phase Shifter 25991 | -5/Warlord | Found Prototype Device 25991 | -5/Warlord | Identified Exp. Focal Shield 25996 | -5/Warlord | Found Prototype Processor 26676 | -5/Warlord | Met Warlord 26701 | -5/Warlord | Warlord's base attacked by MAIN.C 26731 | -5/Warlord | Build established: Commander-Mutant 26981 | -5/Warlord | Found Prototype Launcher 26981 | -5/Warlord | Identified Vortex Catalyst Activator 27051 | -5/Warlord | Warlord forces counterattacked 27118 | -5/Warlord | P-70 Sage assimilated allied W5-6S2(m) 27142 | -5/Warlord | Spotted Striker 27148 | -5/Warlord | Spotted Striker 27157 | -5/Warlord | Allies destroyed Striker 27188 | -5/Warlord | Lost 6 allies 27245 | -5/Warlord | Spotted Striker 27245 | -5/Warlord | Spotted Striker 27274 | -5/Warlord | Destroyed 7 combat bots 27277 | -5/Warlord | Discovered new exit (range 14) 27293 | -5/Warlord | Lost 7 allies 27324 | -5/Warlord | Destroyed 9 combat bots 27332 | -5/Warlord | Identified exit to Proximity Caves 27334 | -5/Warlord | Entered Proximity Caves 27334 | -4/Proximity Caves | Accompanied by 3 allies 27542 | -4/Proximity Caves | Build established: Tank 27842 | -4/Proximity Caves | Learned 4 Research zone layouts 27961 | -4/Proximity Caves | Discovered exit to Factory (range 10) 28182 | -4/Proximity Caves | Entered Factory 28182 | -4/Factory | Accompanied by 3 allies 28182 | -4/Factory | Evolved 2 slots: Utility x2 28498 | -4/Factory | Identified Hacking Drone Bay 28951 | -4/Factory | Identified Core Expander 28951 | -4/Factory | Installed Core Expander, added new Weapon slot 28959 | -4/Factory | Identified Spectral Analyzer 28989 | -4/Factory | P-70 Sage assimilated allied Slayer 6a 29382 | -4/Factory | Identified exit to Upper Caves 29385 | -4/Factory | Identified exit to Research 30145 | -4/Factory | Entered Upper Caves 30943 | -4/Upper Caves | Discovered new exit (range 10) 31002 | -4/Upper Caves | Identified exit to Upper Caves 31272 | -4/Upper Caves | Entered another Upper Caves area 31327 | -4/Upper Caves | Discovered exit to Research (range 9) 31633 | -4/Upper Caves | Learned Research security intel 32042 | -4/Upper Caves | Discovered new exit (range 11) 32064 | -4/Upper Caves | Identified exit to Zhirov 32076 | -4/Upper Caves | Entered Zhirov 32076 | -4/Zhirov | Discovered new exit (range 3) 32123 | -4/Zhirov | Met Zhirov 32197 | -4/Zhirov | Found Alien Artifact 32197 | -4/Zhirov | Identified Integrated Reactor 32197 | -4/Zhirov | Installed Integrated Reactor, increased core energy generation (+10) 32379 | -4/Zhirov | Build established: Mutant 32495 | -4/Zhirov | Learned location of Quarantine (-2) 32495 | -4/Zhirov | Learned location of Testing (-3) 32495 | -4/Zhirov | Learned location of Command (-1) 32517 | -4/Zhirov | Zhirov requested help retrieving the SGEMP Prototype 32595 | -4/Zhirov | Found Alien Artifact 32705 | -4/Zhirov | Identified exit to Proximity Caves 32708 | -4/Zhirov | Entered Proximity Caves 32991 | -3/Proximity Caves | Build established: Tank 33283 | -3/Proximity Caves | Spotter reported a threat 33326 | -3/Proximity Caves | Attracted the attention of an 0b10 outpost 33336 | -3/Proximity Caves | Spotter reported a threat 33672 | -3/Proximity Caves | Lost 5 parts (3u2w) 33768 | -3/Proximity Caves | Discovered exit to Research (range 9) 34182 | -3/Proximity Caves | Received a Behemoth hack from an annoying Tinkerer 34363 | -3/Proximity Caves | Entered Research 34363 | -3/Research | Evolved 2 slots: Utility x2 34364 | -3/Research | Identified exit to Armory 35400 | -3/Research | System corruption reached 10% 35656 | -3/Research | Discovered new exit (range 8) 35674 | -3/Research | Identified exit to Testing 35818 | -3/Research | Garrison activated, responded to threat 35944 | -3/Research | Build established: Scavenger-Tank 35993 | -3/Research | Spotted B-86 Titan 36279 | -3/Research | Entered Testing 36286 | -3/Testing | Spotted PL-NK8F0QWSLB 36288 | -3/Testing | Identified Transdimensional Reconstructor 36288 | -3/Testing | Warped through subspace 36407 | -3/Testing | Found Prototype Hackware 36480 | -3/Testing | Crushed by falling debris 36480 | -3/Testing | System corruption reached 30% 36567 | -3/Testing | Found Prototype Energy Cannon 36568 | -3/Testing | Identified Null Cannon 36914 | -3/Testing | Scanned by Researcher 37201 | -3/Testing | Core integrity fell below 50% 37240 | -3/Testing | Lost 14 parts (1p3n8u2w) 37507 | -3/Testing | Build established: Scavenger-Gunner 37517 | -3/Testing | Found Portable AFG 38013 | -3/Testing | Crushed by falling debris 38031 | -3/Testing | Crushed by falling debris 38062 | -3/Testing | Lost 5 parts (1n4u) 38155 | -3/Testing | Discovered new exit (range 18) 38537 | -3/Testing | Build established: Scavenger-Skirmisher 38735 | -3/Testing | Found Prototype Energy Cannon 38919 | -3/Testing | Identified Cld. Nova Cannon 38927 | -3/Testing | Spotted Striker 38927 | -3/Testing | Spotted Striker 38946 | -3/Testing | Spotted Alpha 7 38956 | -3/Testing | Destroyed Striker 38978 | -3/Testing | Destroyed Striker 38993 | -3/Testing | Core integrity fell below 20% 39014 | -3/Testing | Destroyed Alpha 7 39059 | -3/Testing | Destroyed by X-87 Electro with Compact HERF Cannon Last Messages --------------- cycle. Particle Reactor destroyed. The unstable cave ceiling collapses. System corrupted: Matter fused (-9). Acquired Mic. Antimatter Reactor. Dropped Portable AFG. Acquired Portable AFG. Dropped Portable AFG. Portable AFG generating attraction field. The unstable cave ceiling collapses. Centrium Heavy Treads destroyed. Adv. Heat Sink destroyed. Portable AFG generating attraction field. Acquired 61 matter. The unstable cave ceiling collapses. Portable AFG generating attraction field. Prc. Phase Gun destroyed. Huge Storage Unit destroyed. Portable AFG generating attraction field. [Achievement: Torch] Map ----- +----------------------------------------------------+ | | | | | | | | | | | | | | | ???????????????????????????? | | ???????????????????????????? | | ???????????????????????????? | | ???????????????????????????? | | ???????#####???????????????? | | ???????"""""???????????????? | | ??????? "????????????????? | | ??????? ????????????????? | | ??????? ????????????????? | | ??????? ????????????????? | | ??????? ????????????????? | | ???????#/"##???????????????? | | ???????# #???????????????? | | ??????? ###?????######### | | ??###### #?????######### | | ?## # #?????## | | ##![! ###????## """ " | | #[!*!! #????## """ " | | !&!@!*x #????## """ " | | [|[%*!x # #### | | #=%!! # # #####+#### | | ; "" #### #### | | # ????????? | | # " # #????????? | | # """ # #????????? | | # """" ### ## ##???????## | | # "" ##?##### ####?????## | | # ##????## ####?????## | | # ###???## ?????## | | # ######## ???????## | | ######"######## ##???????## | | ??###### # ##???????## | | ?????###]""" # ##???????## | | ??????## """ + ########### | | ??????## """ # ########### | | ??????## # | | ??????## # | | ??????######+## ###+####### | | ??????## # #! #### | | ??????## """ # # """ ##?? | | ??????## """" + # """ ##?? | | ??????## """" # # """ ##?? | | ??????## """ # # ##?? | +----------------------------------------------------+ Best States ------------- Heat Dissipation 122 Coolant Potential 80 Energy Generation 65 Energy Capacity 700 Matter Stores 300 Matter Capacity 300 Sight Range 24 Robot Scan Range 16 Terrain Scan Density 10 Jamming Range 14 Armor Coverage 475 Resistance: KI 20 Resistance: EM 15 Core Shielding 20 Power Shielding 90 Propulsion Shielding 33 Phase Shifting 20 Evasion (%) 60 Targeting Accuracy 16 Target Analysis 10 Armor Integrity Analysis 40 Recoil Reduction 4 Matter Filtering 50 Energy Filtering 50 Offensive Hacking 10 Authchip Count 3 Item Schematics ----------------- Huge Storage Unit | -10/Materials | Hacked Powered Armor | -7/Factory | Hacked Combat Drone Bay | -7/Data Miner | Free Lgt. Regenerative Plating | -7/Data Miner | Free Cld. Cesium-ion Thruster | -7/Data Miner | Free Imp. Lightning Gun | -7/Data Miner | Free Antigrav System | -7/Data Miner | Free Exp. Power Shielding | -7/Data Miner | Free Imp. Kinecellerator | -7/Data Miner | Free Lance | -7/Data Miner | Free Adv. Cooling System | -7/Data Miner | Free Adv. Field Recycling Unit | -7/Data Miner | Free Nuclear Pulse Thruster | -6/Zion | Archive Imp. Weapon Cycler | -6/Zion | Archive Arm. Leg | -6/Zion | Archive Fusion Compressor | -6/Zion | Archive Remote Force Field | -6/Zion | Archive Imp. Proton Missile Launcher | -6/Zion | Archive Adv. Actuator Array | -6/Zion | Archive Myomer Leg | -6/Zion | Archive Thermal Shield | -6/Zion | Archive Variable Charge Gun | -6/Zion | Archive Adv. Shield Generator | -6/Zion | Archive Imp. Coolant Injector | -6/Zion | Archive System Guard | -6/Zion | Archive Hvy. Treads | -5/Factory | Scanalyzed Assault Drone Bay | -4/Zhirov | Free Exp. Heat Sink | -4/Zhirov | Free Exp. Optical Array | -4/Zhirov | Free Imp. Arc Thrower | -4/Zhirov | Free Imp. Diametric Drive | -3/Testing | Archive Enh. Biometal Leg | -3/Testing | Archive Tactical Quantum Warhead | -3/Testing | Archive Robot Schematics ------------------ L-41 Fighter | -7/Data Miner | Free G-47 Trooper | -7/Data Miner | Free S-27 Virus | -7/Data Miner | Free X-57 Shotgunner | -7/Data Miner | Free B-48 Gladiator | -7/Data Miner | Free A-02 Transporter | -6/Zion | Archive K-01 Serf | -6/Zion | Archive E-15 Imp | -6/Zion | Archive Fabricated ------------ Lgt. Regenerative Plating | x1 | -5/Factory | Authchip Lgt. Regenerative Plating | x1 | -5/Factory | Authchip Hvy. Treads | x1 | -5/Factory | Authchip Repaired ---------- Core Shielding | 34% | -9/Materials Arm. Wheel | 22% | -7/Factory Adv. Treads | 99% | -5/Factory | Broken Alien Tech Used ----------------- Core Expander Integrated Reactor Transdimensional Reconstructor Achievements -------------- Can't Touch This Collateral Damage Decoder Ring Ooh, Shiny! Rockin' Loadout Safety First Torch Z1$+NX3F=JRE3_ZNQR Challenges ------------ None Game ------ Seed CannonSpectralActivator Manual? 0 Play Time 06:00:56 Cumulative 43.0 hours Start 2025.07.29 @ 12:48:21 End 2025.07.31 @ 16:26:16 Sessions 13 Manual Loads 0 Difficulty Rogue Special Mode None Game No. 25 Rogue 23 Adventurer 0 Explorer 2 Win Type - Total 1 Types 1/0/0/0/0/0/0/0/0/0 Lore% 54 Gallery% 34 Achievement% 37 Wizard Run 0 Options --------- Layout 1 ASCII 0 Keyboard 0 Movement Mouse Keybinds 0 Fullscreen 1 Font 24/Smallcaps Map View 50x35 Zoom Use 0% Tactical HUD 0 Map Filters NONE Filters NONE Steam 1 RUN: 2e63ce9f-42b9-4e73-a836-92e376b426dc